[Event "Masters Tournament (MTO)"]
[Site "Biel, Switzerland"]
[Date "2026.07.22"]
[Round "9.29"]
[White "Scherler, Julius"]
[Black "Kudryavtsev, Eugene"]
[Result "0-1"]
[TimeControl "100+30+30sec/move"]
[WhiteTitle "-"]
[BlackTitle "-"]
[WhiteFideId "1337947"]
[BlackFideId "1315374"]
[WhiteElo "1941"]
[BlackElo "2146"]

1. e4 {[%clk 01:40:39]} {[%emt 00:00:19]} c5 {[%clk 01:40:55]} {[%emt
00:00:07]} 2. Nf3 {[%clk 01:40:46]} {[%emt 00:00:20]} d6 {[%clk 01:41:18]}
{[%emt 00:00:09]} 3. d4 {[%clk 01:40:46]} {[%emt 00:00:28]} cxd4 {[%clk
01:41:43]} {[%emt 00:00:07]} 4. Qxd4 {[%clk 01:40:50]} {[%emt 00:00:26]} Nc6
{[%clk 01:42:03]} {[%emt 00:00:11]} 5. Qe3 {[%clk 01:40:50]} {[%emt 00:00:29]}
g6 {[%clk 01:42:23]} {[%emt 00:00:10]} 6. Be2 {[%clk 01:40:56]} {[%emt
00:00:23]} Bg7 {[%clk 01:42:47]} {[%emt 00:00:07]} 7. h3 {[%clk 01:41:15]}
{[%emt 00:00:10]} Nf6 {[%clk 01:43:04]} {[%emt 00:00:14]} 8. O-O {[%clk
01:41:39]} {[%emt 00:00:05]} O-O {[%clk 01:43:30]} {[%emt 00:00:05]} 9. Rd1
{[%clk 01:42:02]} {[%emt 00:00:07]} Be6 {[%clk 01:43:55]} {[%emt 00:00:06]} 10.
Nc3 {[%clk 01:42:25]} {[%emt 00:00:06]} Rc8 {[%clk 01:43:58]} {[%emt 00:00:27]}
11. Rb1 {[%clk 01:42:08]} {[%emt 00:00:47]} Qc7 {[%clk 01:38:57]} {[%emt
00:05:31]} 12. Bf1 {[%clk 01:41:29]} {[%emt 00:01:09]} a6 {[%clk 01:38:40]}
{[%emt 00:00:48]} 13. Nd5 {[%clk 01:39:37]} {[%emt 00:02:22]} Bxd5 {[%clk
01:36:53]} {[%emt 00:02:17]} 14. exd5 {[%clk 01:40:02]} {[%emt 00:00:05]} Nb4
{[%clk 01:27:01]} {[%emt 00:10:22]} 15. c4 {[%clk 01:40:09]} {[%emt 00:00:23]}
Nxa2 {[%clk 01:26:56]} {[%emt 00:00:34]} 16. Bd2 {[%clk 01:40:35]} {[%emt
00:00:04]} a5 {[%clk 01:27:22]} {[%emt 00:00:04]} 17. Qe1 {[%clk 01:41:00]}
{[%emt 00:00:05]} Nb4 {[%clk 01:24:15]} {[%emt 00:03:37]} 18. Nd4 {[%clk
01:35:24]} {[%emt 00:06:06]} Qb6 {[%clk 01:07:18]} {[%emt 00:17:27]} 19. Nb5
{[%clk 01:22:50]} {[%emt 00:13:04]} Rfe8 {[%clk 01:07:07]} {[%emt 00:00:42]} 20.
Bxb4 {[%clk 01:14:33]} {[%emt 00:08:46]} axb4 {[%clk 01:07:32]} {[%emt
00:00:06]} 21. Qxb4 {[%clk 01:13:41]} {[%emt 00:01:21]} Ra8 {[%clk 00:54:49]}
{[%emt 00:13:13]} 22. Re1 {[%clk 00:58:29]} {[%emt 00:15:42]} Nd7 {[%clk
00:53:46]} {[%emt 00:01:34]} 23. Qd2 {[%clk 00:50:54]} {[%emt 00:08:04]} Ra2
{[%clk 00:34:14]} {[%emt 00:20:02]} 24. Qe3 {[%clk 00:45:14]} {[%emt 00:06:10]}
Qxe3 {[%clk 00:33:11]} {[%emt 00:01:34]} 25. Rxe3 {[%clk 00:45:31]} {[%emt
00:00:11]} Kf8 {[%clk 00:33:10]} {[%emt 00:00:31]} 26. Rbe1 {[%clk 00:38:36]}
{[%emt 00:07:26]} Be5 {[%clk 00:25:01]} {[%emt 00:08:40]} 27. R1e2 {[%clk
00:23:51]} {[%emt 00:15:15]} Rea8 {[%clk 00:20:05]} {[%emt 00:05:26]} 28. b4
{[%clk 00:17:19]} {[%emt 00:07:01]} Nb6 {[%clk 00:14:36]} {[%emt 00:05:59]} 29.
Rxa2 {[%clk 00:03:42]} {[%emt 00:14:08]} Rxa2 {[%clk 00:14:46]} {[%emt
00:00:19]} 30. Rb3 {[%clk 00:01:47]} {[%emt 00:02:25]} Ra1 {[%clk 00:10:09]}
{[%emt 00:05:07]} 31. Na3 {[%clk 00:01:50]} {[%emt 00:00:27]} Rc1 {[%clk
00:10:00]} {[%emt 00:00:39]} 32. Rb1 {[%clk 00:02:05]} {[%emt 00:00:16]} Rc3
{[%clk 00:09:38]} {[%emt 00:00:52]} 33. Nb5 {[%clk 00:02:03]} {[%emt 00:00:31]}
Rc2 {[%clk 00:09:31]} {[%emt 00:00:37]} 34. Na3 {[%clk 00:01:50]} {[%emt
00:00:43]} Ra2 {[%clk 00:07:41]} {[%emt 00:02:20]} 35. Nb5 {[%clk 00:02:10]}
{[%emt 00:00:11]} Na4 {[%clk 00:03:04]} {[%emt 00:05:07]} 36. Rc1 {[%clk
00:01:07]} {[%emt 00:01:33]} b6 {[%clk 00:01:29]} {[%emt 00:02:05]} 37. Rb1
{[%clk 00:00:59]} {[%emt 00:00:37]} Nc3 {[%clk 00:01:16]} {[%emt 00:00:43]} 38.
Nxc3 {[%clk 00:00:49]} {[%emt 00:00:41]} Bxc3 {[%clk 00:01:42]} {[%emt
00:00:04]} 39. Rb3 {[%clk 00:00:40]} {[%emt 00:00:39]} Bd4 {[%clk 00:01:31]}
{[%emt 00:00:41]} 40. Rf3 {[%clk 00:00:50]} {[%emt 00:00:19]} Rb2 {[%clk
00:00:48]} {[%emt 00:01:13]} 41. b5 {[%clk 00:28:23]} {[%emt 00:02:57]} Kg7
{[%clk 00:26:35]} {[%emt 00:04:43]} 42. g4 {[%clk 00:22:10]} {[%emt 00:06:42]}
Rd2 {[%clk 00:15:13]} {[%emt 00:11:52]} 43. Kg2 {[%clk 00:17:33]} {[%emt
00:05:06]} f5 {[%clk 00:07:58]} {[%emt 00:07:46]} 44. gxf5 {[%clk 00:16:05]}
{[%emt 00:01:59]} g5 {[%clk 00:08:23]} {[%emt 00:00:06]} 45. h4 {[%clk
00:10:29]} {[%emt 00:06:04]} g4 {[%clk 00:06:48]} {[%emt 00:02:05]} 46. Rd3
{[%clk 00:03:56]} {[%emt 00:07:02]} Rxf2+ {[%clk 00:06:50]} {[%emt 00:00:28]}
47. Kg3 {[%clk 00:04:24]} {[%emt 00:00:03]} Bc5 {[%clk 00:07:14]} {[%emt
00:00:06]} 48. Rd1 {[%clk 00:03:06]} {[%emt 00:01:48]} h5 {[%clk 00:07:19]}
{[%emt 00:00:25]} 49. Re1 {[%clk 00:03:08]} {[%emt 00:00:28]} Rxf5 {[%clk
00:05:02]} {[%emt 00:02:46]} 50. Bg2 {[%clk 00:02:14]} {[%emt 00:01:25]} Bf2+
{[%clk 00:05:26]} {[%emt 00:00:06]} 0-1

[Event "Masters Tournament (MTO)"]
[Site "Biel, Switzerland"]
[Date "2026.07.22"]
[Round "9.30"]
[White "Fogo Esquivel, Levi Kalani Alexander"]
[Black "Hornung, Hans"]
[Result "1-0"]
[TimeControl "100+30+30sec/move"]
[WhiteTitle "-"]
[BlackTitle "-"]
[WhiteFideId "5183189"]
[BlackFideId "4615140"]
[WhiteElo "2125"]
[BlackElo "1924"]

1. e4 {[%clk 01:35:14]} {[%emt 00:05:44]} e5 {[%clk 01:40:51]} {[%emt
00:00:09]} 2. Nf3 {[%clk 01:34:48]} {[%emt 00:00:56]} Nc6 {[%clk 01:41:09]}
{[%emt 00:00:14]} 3. Bc4 {[%clk 01:35:11]} {[%emt 00:00:06]} Nf6 {[%clk
01:41:29]} {[%emt 00:00:09]} 4. d3 {[%clk 01:35:36]} {[%emt 00:00:06]} h6
{[%clk 01:41:37]} {[%emt 00:00:21]} 5. O-O {[%clk 01:35:53]} {[%emt 00:00:14]}
d6 {[%clk 01:41:04]} {[%emt 00:01:02]} 6. a4 {[%clk 01:36:12]} {[%emt
00:00:11]} g6 {[%clk 01:40:23]} {[%emt 00:01:11]} 7. Re1 {[%clk 01:36:17]}
{[%emt 00:00:25]} Bg7 {[%clk 01:40:42]} {[%emt 00:00:12]} 8. Nc3 {[%clk
01:36:41]} {[%emt 00:00:05]} O-O {[%clk 01:40:40]} {[%emt 00:00:31]} 9. h3
{[%clk 01:37:06]} {[%emt 00:00:06]} a6 {[%clk 01:37:52]} {[%emt 00:03:20]} 10.
Be3 {[%clk 01:37:09]} {[%emt 00:00:25]} Na5 {[%clk 01:34:44]} {[%emt 00:03:39]}
11. Ba2 {[%clk 01:37:25]} {[%emt 00:00:14]} c5 {[%clk 01:34:46]} {[%emt
00:00:28]} 12. Nh2 {[%clk 01:28:54]} {[%emt 00:09:00]} Nc6 {[%clk 01:33:00]}
{[%emt 00:02:17]} 13. f4 {[%clk 01:28:08]} {[%emt 00:01:15]} exf4 {[%clk
01:24:51]} {[%emt 00:08:39]} 14. Bxf4 {[%clk 01:27:46]} {[%emt 00:00:53]} Nd4
{[%clk 01:22:35]} {[%emt 00:02:46]} 15. Nf3 {[%clk 01:26:11]} {[%emt 00:02:05]}
Be6 {[%clk 01:18:03]} {[%emt 00:05:02]} 16. Be3 {[%clk 01:23:57]} {[%emt
00:02:43]} Nd7 {[%clk 01:14:17]} {[%emt 00:04:16]} 17. Nd5 {[%clk 01:23:40]}
{[%emt 00:00:47]} Kh7 {[%clk 01:05:37]} {[%emt 00:09:09]} 18. Nxd4 {[%clk
01:13:54]} {[%emt 00:10:17]} cxd4 {[%clk 01:05:31]} {[%emt 00:00:37]} 19. Bd2
{[%clk 01:12:26]} {[%emt 00:01:54]} a5 {[%clk 01:01:22]} {[%emt 00:04:42]} 20.
Bc4 {[%clk 01:11:36]} {[%emt 00:01:20]} Nb6 {[%clk 00:58:28]} {[%emt 00:03:25]}
21. Nxb6 {[%clk 01:11:45]} {[%emt 00:00:21]} Qxb6 {[%clk 00:58:42]} {[%emt
00:00:16]} 22. b3 {[%clk 01:12:09]} {[%emt 00:00:06]} Qd8 {[%clk 00:58:09]}
{[%emt 00:01:03]} 23. Qf3 {[%clk 01:11:51]} {[%emt 00:00:46]} Qh4 {[%clk
00:52:52]} {[%emt 00:05:48]} 24. Rf1 {[%clk 01:11:00]} {[%emt 00:01:19]} b6
{[%clk 00:40:27]} {[%emt 00:12:56]} 25. Rf2 {[%clk 01:10:53]} {[%emt 00:00:37]}
Rae8 {[%clk 00:39:37]} {[%emt 00:01:21]} 26. Raf1 {[%clk 01:10:46]} {[%emt
00:00:38]} Qd8 {[%clk 00:34:38]} {[%emt 00:05:28]} 27. Qg3 {[%clk 01:09:54]}
{[%emt 00:01:22]} d5 {[%clk 00:33:03]} {[%emt 00:02:05]} 28. exd5 {[%clk
01:10:07]} {[%emt 00:00:18]} Bxd5 {[%clk 00:33:11]} {[%emt 00:00:22]} 29. Bf4
{[%clk 01:10:36]} {[%emt 00:00:01]} Bxc4 {[%clk 00:27:09]} {[%emt 00:06:32]} 30.
bxc4 {[%clk 01:11:04]} {[%emt 00:00:02]} f5 {[%clk 00:27:03]} {[%emt 00:00:35]}
31. Rb1 {[%clk 01:10:23]} {[%emt 00:01:11]} Re6 {[%clk 00:26:55]} {[%emt
00:00:38]} 32. Bc7 {[%clk 01:09:38]} {[%emt 00:01:16]} Qe7 {[%clk 00:18:56]}
{[%emt 00:08:29]} 33. Rff1 {[%clk 01:07:05]} {[%emt 00:03:03]} Re3 {[%clk
00:16:15]} {[%emt 00:03:09]} 34. Qd6 {[%clk 01:06:24]} {[%emt 00:01:12]} Qg5
{[%clk 00:15:01]} {[%emt 00:01:44]} 35. Qf4 {[%clk 01:05:38]} {[%emt 00:01:15]}
Qxf4 {[%emt 00:01:04]} 36. Rxf4 {[%clk 01:04:12]} {[%emt 00:01:45]} Rc8 {[%clk
00:11:22]} {[%emt 00:03:48]} 37. Bxb6 {[%clk 01:04:23]} {[%emt 00:00:18]} Be5
{[%clk 00:11:12]} {[%emt 00:00:42]} 38. Rf3 {[%clk 01:04:19]} {[%emt 00:00:26]}
f4 {[%clk 00:10:12]} {[%emt 00:01:37]} 39. Bxa5 {[%clk 01:04:32]} {[%emt
00:00:17]} g5 {[%clk 00:09:46]} {[%emt 00:00:56]} 40. Rb5 {[%clk 01:04:42]}
{[%emt 00:00:20]} h5 {[%clk 00:08:58]} {[%emt 00:01:18]} 41. Rxe3 {[%clk
01:05:06]} {[%emt 00:00:06]} 1-0

[Event "Masters Tournament (MTO)"]
[Site "Biel, Switzerland"]
[Date "2026.07.22"]
[Round "9.31"]
[White "Heitmann, Erik"]
[Black "Kwiatkowski, Jakub"]
[Result "0-1"]
[TimeControl "100+30+30sec/move"]
[WhiteTitle "-"]
[BlackTitle "-"]
[WhiteFideId "34608940"]
[BlackFideId "1348736"]
[WhiteElo "1949"]
[BlackElo "2107"]

1. d4 {[%clk 01:41:00]} {[%emt 00:00:03]} Nf6 {[%clk 01:40:51]} {[%emt
00:00:07]} 2. c4 {[%clk 01:41:25]} {[%emt 00:00:04]} e6 {[%clk 01:41:09]}
{[%emt 00:00:12]} 3. Nc3 {[%clk 01:41:53]} {[%emt 00:00:02]} Bb4 {[%clk
01:41:26]} {[%emt 00:00:13]} 4. f3 {[%clk 01:42:23]} {[%emt 00:00:02]} O-O
{[%clk 01:41:37]} {[%emt 00:00:17]} 5. a3 {[%clk 01:42:44]} {[%emt 00:00:10]}
Bxc3+ {[%clk 01:41:58]} {[%emt 00:00:08]} 6. bxc3 {[%clk 01:43:10]} {[%emt
00:00:05]} Ne8 {[%clk 01:41:57]} {[%emt 00:00:31]} 7. e4 {[%clk 01:38:54]}
{[%emt 00:04:46]} b6 {[%clk 01:41:27]} {[%emt 00:00:59]} 8. Bd3 {[%clk
01:38:01]} {[%emt 00:01:23]} Nc6 {[%clk 01:38:33]} {[%emt 00:03:24]} 9. Nh3
{[%clk 01:36:50]} {[%emt 00:01:42]} Ba6 {[%clk 01:36:44]} {[%emt 00:02:19]} 10.
Ra2 {[%clk 01:30:35]} {[%emt 00:06:45]} Na5 {[%clk 01:32:06]} {[%emt 00:05:08]}
11. Qe2 {[%clk 01:26:54]} {[%emt 00:04:11]} Rc8 {[%clk 01:28:15]} {[%emt
00:04:20]} 12. e5 {[%clk 01:18:13]} {[%emt 00:09:11]} f6 {[%clk 01:24:53]}
{[%emt 00:03:52]} 13. Qe4 {[%clk 01:14:43]} {[%emt 00:04:01]} f5 {[%clk
01:24:43]} {[%emt 00:00:39]} 14. Qe2 {[%clk 01:14:38]} {[%emt 00:00:35]} c5
{[%clk 01:21:15]} {[%emt 00:03:58]} 15. Bg5 {[%clk 01:13:13]} {[%emt 00:01:56]}
Qc7 {[%clk 01:21:19]} {[%emt 00:00:25]} 16. Rc2 {[%clk 01:10:49]} {[%emt
00:02:54]} h6 {[%clk 01:07:33]} {[%emt 00:14:16]} 17. Bd2 {[%clk 01:04:00]}
{[%emt 00:07:19]} Qc6 {[%clk 01:05:33]} {[%emt 00:02:31]} 18. d5 {[%clk
00:58:58]} {[%emt 00:05:32]} Qa4 {[%clk 01:01:53]} {[%emt 00:04:09]} 19. dxe6
{[%clk 00:57:17]} {[%emt 00:02:12]} dxe6 {[%clk 01:02:11]} {[%emt 00:00:12]} 20.
Nf4 {[%clk 00:57:22]} {[%emt 00:00:25]} Nc7 {[%clk 01:01:27]} {[%emt 00:01:13]}
21. g4 {[%clk 00:54:47]} {[%emt 00:03:05]} Bxc4 {[%clk 00:59:24]} {[%emt
00:02:33]} 22. Ng6 {[%clk 00:52:28]} {[%emt 00:02:49]} Bxd3 {[%clk 00:55:11]}
{[%emt 00:04:44]} 23. Qxd3 {[%clk 00:52:39]} {[%emt 00:00:18]} Rcd8 {[%clk
00:55:26]} {[%emt 00:00:15]} 24. Qe2 {[%clk 00:48:01]} {[%emt 00:05:09]} Qxc2
{[%clk 00:55:35]} {[%emt 00:00:20]} 25. Nxf8 {[%clk 00:47:44]} {[%emt
00:00:48]} Qb1+ {[%clk 00:55:51]} {[%emt 00:00:14]} 26. Qd1 {[%clk 00:45:41]}
{[%emt 00:02:32]} Qxd1+ {[%clk 00:56:09]} {[%emt 00:00:13]} 27. Kxd1 {[%clk
00:46:10]} {[%emt 00:00:01]} Nc4 {[%clk 00:56:14]} {[%emt 00:00:25]} 28. Ng6
{[%clk 00:46:09]} {[%emt 00:00:31]} Rxd2+ {[%clk 00:56:35]} {[%emt 00:00:09]}
29. Kc1 {[%clk 00:46:23]} {[%emt 00:00:14]} Nd5 {[%clk 00:55:39]} {[%emt
00:01:27]} 30. gxf5 {[%clk 00:46:29]} {[%emt 00:00:24]} Ra2 {[%clk 00:56:01]}
{[%emt 00:00:09]} 0-1

[Event "Masters Tournament (MTO)"]
[Site "Biel, Switzerland"]
[Date "2026.07.22"]
[Round "9.32"]
[White "Ruchat, Blaise"]
[Black "Schmidt, Florian Pascal"]
[Result "0-1"]
[TimeControl "100+30+30sec/move"]
[WhiteTitle "-"]
[BlackTitle "-"]
[WhiteFideId "1328921"]
[BlackFideId "16256840"]
[WhiteElo "1912"]
[BlackElo "2095"]

1. e4 {[%clk 01:40:57]} {[%emt 00:00:02]} c5 {[%clk 01:40:48]} {[%emt
00:00:06]} 2. Nf3 {[%clk 01:41:18]} {[%emt 00:00:16]} d6 {[%clk 01:41:13]}
{[%emt 00:00:04]} 3. d4 {[%clk 01:41:27]} {[%emt 00:00:21]} cxd4 {[%clk
01:41:40]} {[%emt 00:00:03]} 4. Nxd4 {[%clk 01:41:51]} {[%emt 00:00:07]} Nf6
{[%clk 01:42:06]} {[%emt 00:00:02]} 5. Nc3 {[%clk 01:42:13]} {[%emt 00:00:09]}
a6 {[%clk 01:42:33]} {[%emt 00:00:03]} 6. g3 {[%clk 01:42:30]} {[%emt
00:00:13]} e5 {[%clk 01:42:48]} {[%emt 00:00:15]} 7. Nb3 {[%clk 01:42:50]}
{[%emt 00:00:11]} Be7 {[%clk 01:42:40]} {[%emt 00:00:40]} 8. Bg2 {[%clk
01:43:05]} {[%emt 00:00:13]} O-O {[%clk 01:42:50]} {[%emt 00:00:20]} 9. O-O
{[%clk 01:42:13]} {[%emt 00:01:23]} a5 {[%clk 01:41:23]} {[%emt 00:01:57]} 10.
Re1 {[%clk 01:40:17]} {[%emt 00:02:25]} a4 {[%clk 01:40:57]} {[%emt 00:00:56]}
11. Nd2 {[%clk 01:40:32]} {[%emt 00:00:16]} Bg4 {[%clk 01:39:38]} {[%emt
00:01:48]} 12. Bf3 {[%clk 01:35:51]} {[%emt 00:05:11]} Bxf3 {[%clk 01:39:06]}
{[%emt 00:01:02]} 13. Qxf3 {[%clk 01:35:57]} {[%emt 00:00:24]} Nc6 {[%clk
01:39:21]} {[%emt 00:00:15]} 14. Nf1 {[%clk 01:33:58]} {[%emt 00:02:29]} Nd4
{[%clk 01:38:30]} {[%emt 00:01:22]} 15. Qd1 {[%clk 01:34:16]} {[%emt 00:00:12]}
a3 {[%clk 01:34:02]} {[%emt 00:04:57]} 16. Ne3 {[%clk 01:18:24]} {[%emt
00:16:22]} Rc8 {[%clk 01:29:32]} {[%emt 00:05:01]} 17. Nf5 {[%clk 00:55:00]}
{[%emt 00:23:53]} Nxf5 {[%clk 01:28:50]} {[%emt 00:01:12]} 18. exf5 {[%clk
00:55:28]} {[%emt 00:00:02]} Qb6 {[%clk 01:23:28]} {[%emt 00:05:52]} 19. Be3
{[%clk 00:41:28]} {[%emt 00:14:30]} Qxb2 {[%clk 01:19:48]} {[%emt 00:04:11]} 20.
Nd5 {[%clk 00:41:18]} {[%emt 00:00:39]} Bd8 {[%clk 01:09:59]} {[%emt 00:10:19]}
21. Rb1 {[%clk 00:23:51]} {[%emt 00:17:57]} Qxa2 {[%clk 01:01:32]} {[%emt
00:08:58]} 22. Nxf6+ {[%clk 00:18:15]} {[%emt 00:06:06]} Bxf6 {[%clk 01:01:53]}
{[%emt 00:00:09]} 23. Qh5 {[%clk 00:13:57]} {[%emt 00:04:47]} Qxc2 {[%clk
00:57:36]} {[%emt 00:04:47]} 24. Rbc1 {[%clk 00:04:36]} {[%emt 00:09:52]} Qa4
{[%clk 00:56:08]} {[%emt 00:01:57]} 25. Bg5 {[%clk 00:02:08]} {[%emt 00:02:58]}
Rxc1 {[%clk 00:54:43]} {[%emt 00:01:55]} 26. Rxc1 {[%clk 00:02:30]} {[%emt
00:00:09]} g6 {[%clk 00:54:34]} {[%emt 00:00:38]} 27. Qh6 {[%clk 00:01:20]}
{[%emt 00:01:39]} Bg7 {[%clk 00:54:42]} {[%emt 00:00:23]} 28. Qh3 {[%clk
00:01:42]} {[%emt 00:00:08]} a2 {[%clk 00:51:48]} {[%emt 00:03:25]} 29. Ra1
{[%clk 00:00:41]} {[%emt 00:01:31]} gxf5 {[%clk 00:50:08]} {[%emt 00:02:10]} 30.
Qf1 {[%clk 00:00:33]} {[%emt 00:00:37]} e4 {[%clk 00:50:20]} {[%emt 00:00:18]}
0-1

[Event "Masters Tournament (MTO)"]
[Site "Biel, Switzerland"]
[Date "2026.07.22"]
[Round "9.33"]
[White "Joly, Fabrice"]
[Black "Arndt, Uwe"]
[Result "1/2-1/2"]
[TimeControl "100+30+30sec/move"]
[WhiteTitle "-"]
[BlackTitle "-"]
[WhiteFideId "612235"]
[BlackFideId "24647713"]
[WhiteElo "1907"]
[BlackElo "2005"]

1. e4 {[%clk 01:40:58]} {[%emt 00:00:01]} c6 {[%clk 01:40:55]} {[%emt
00:00:06]} 2. d4 {[%clk 01:41:23]} {[%emt 00:00:05]} d5 {[%clk 01:41:19]}
{[%emt 00:00:08]} 3. exd5 {[%clk 01:41:47]} {[%emt 00:00:04]} cxd5 {[%clk
01:41:43]} {[%emt 00:00:06]} 4. Bd3 {[%clk 01:42:12]} {[%emt 00:00:05]} Nc6
{[%clk 01:42:08]} {[%emt 00:00:07]} 5. c3 {[%clk 01:42:38]} {[%emt 00:00:03]}
Qc7 {[%clk 01:42:27]} {[%emt 00:00:11]} 6. Bg5 {[%clk 01:43:02]} {[%emt
00:00:05]} e5 {[%clk 01:40:13]} {[%emt 00:02:44]} 7. dxe5 {[%clk 01:40:19]}
{[%emt 00:03:13]} Qxe5+ {[%clk 01:39:36]} {[%emt 00:01:07]} 8. Qe2 {[%clk
01:40:37]} {[%emt 00:00:11]} Be7 {[%clk 01:36:38]} {[%emt 00:03:28]} 9. Be3
{[%clk 01:37:15]} {[%emt 00:03:51]} Nf6 {[%clk 01:33:19]} {[%emt 00:03:50]} 10.
Nf3 {[%clk 01:34:03]} {[%emt 00:03:43]} Qc7 {[%clk 01:31:37]} {[%emt 00:02:12]}
11. h3 {[%clk 01:34:16]} {[%emt 00:00:17]} O-O {[%clk 01:31:52]} {[%emt
00:00:15]} 12. O-O {[%clk 01:34:41]} {[%emt 00:00:05]} Re8 {[%clk 01:28:20]}
{[%emt 00:04:02]} 13. Qc2 {[%clk 01:33:21]} {[%emt 00:01:50]} Bd6 {[%clk
01:16:35]} {[%emt 00:12:15]} 14. Nbd2 {[%clk 01:32:00]} {[%emt 00:01:50]} Bf4
{[%clk 01:13:49]} {[%emt 00:03:16]} 15. Bd4 {[%clk 01:14:54]} {[%emt 00:17:37]}
Nxd4 {[%clk 01:05:54]} {[%emt 00:08:25]} 16. Nxd4 {[%clk 01:14:12]} {[%emt
00:01:12]} Bd7 {[%clk 01:03:15]} {[%emt 00:03:09]} 17. Rfe1 {[%clk 01:12:46]}
{[%emt 00:01:56]} a6 {[%clk 01:02:09]} {[%emt 00:01:37]} 18. N2f3 {[%clk
01:10:02]} {[%emt 00:03:14]} g6 {[%clk 01:00:53]} {[%emt 00:01:45]} 19. Rxe8+
{[%clk 00:51:21]} {[%emt 00:19:11]} Rxe8 {[%clk 00:59:49]} {[%emt 00:01:34]} 20.
Re1 {[%clk 00:51:43]} {[%emt 00:00:08]} b5 {[%clk 00:55:54]} {[%emt 00:04:24]}
21. a3 {[%clk 00:48:25]} {[%emt 00:03:49]} Qc8 {[%clk 00:48:28]} {[%emt
00:07:56]} 22. Ne2 {[%clk 00:41:53]} {[%emt 00:07:02]} Bd6 {[%clk 00:45:37]}
{[%emt 00:03:20]} 23. Ned4 {[%clk 00:37:21]} {[%emt 00:05:03]} Rxe1+ {[%clk
00:42:11]} {[%emt 00:03:55]} 24. Nxe1 {[%clk 00:37:31]} {[%emt 00:00:20]} Qe8
{[%clk 00:40:31]} {[%emt 00:02:10]} 25. Qe2 {[%clk 00:37:46]} {[%emt 00:00:15]}
Ne4 {[%clk 00:37:51]} {[%emt 00:03:10]} 26. f3 {[%clk 00:28:15]} {[%emt
00:10:02]} Nc5 {[%clk 00:32:58]} {[%emt 00:05:22]} 27. Qxe8+ {[%clk 00:27:05]}
{[%emt 00:01:41]} Bxe8 {[%clk 00:33:21]} {[%emt 00:00:07]} 28. Bc2 {[%clk
00:26:59]} {[%emt 00:00:35]} Bf4 {[%clk 00:32:21]} {[%emt 00:01:30]} 29. Nb3
{[%clk 00:17:48]} {[%emt 00:09:41]} Ne6 {[%clk 00:28:59]} {[%emt 00:03:52]} 30.
Kf2 {[%clk 00:16:49]} {[%emt 00:01:30]} Bc7 {[%clk 00:27:49]} {[%emt 00:01:39]}
31. Nd4 {[%clk 00:12:07]} {[%emt 00:05:13]} Bb6 {[%clk 00:27:54]} {[%emt
00:00:25]} 32. Ke3 {[%clk 00:12:03]} {[%emt 00:00:34]} Bd7 {[%clk 00:25:35]}
{[%emt 00:02:49]} 33. Nd3 {[%clk 00:11:34]} {[%emt 00:00:59]} a5 {[%clk
00:20:36]} {[%emt 00:05:29]} 34. Nf4 {[%clk 00:07:22]} {[%emt 00:04:38]} Bc6
{[%clk 00:19:53]} {[%emt 00:01:14]} 35. Bb3 {[%clk 00:07:03]} {[%emt 00:00:52]}
Bxd4+ {[%clk 00:13:52]} {[%emt 00:06:30]} 36. cxd4 {[%clk 00:07:26]} {[%emt
00:00:08]} Nxf4 {[%clk 00:14:13]} {[%emt 00:00:10]} 37. Kxf4 {[%clk 00:07:52]}
{[%emt 00:00:03]} f6 {[%clk 00:14:22]} {[%emt 00:00:21]} 38. h4 {[%clk
00:07:53]} {[%emt 00:00:29]} Kf7 {[%clk 00:13:47]} {[%emt 00:01:05]} 39. Bc2
{[%clk 00:05:05]} {[%emt 00:03:18]} Ke6 {[%clk 00:14:02]} {[%emt 00:00:13]} 40.
g3 {[%clk 00:05:17]} {[%emt 00:00:20]} Be8 {[%clk 00:13:15]} {[%emt 00:01:14]}
41. b4 {[%clk 00:03:50]} {[%emt 00:02:01]} axb4 {[%clk 00:12:43]} {[%emt
00:01:02]} 42. axb4 {[%clk 00:03:24]} {[%emt 00:00:55]} Kd6 {[%clk 00:08:09]}
{[%emt 00:05:02]} 43. Bd3 {[%clk 00:00:55]} {[%emt 00:03:00]} Ke6 {[%clk
00:08:21]} {[%emt 00:00:18]} 1/2-1/2

[Event "Masters Tournament (MTO)"]
[Site "Biel, Switzerland"]
[Date "2026.07.22"]
[Round "9.34"]
[White "Bucher, Dominic"]
[Black "Corbat, Philippe"]
[Result "1-0"]
[TimeControl "100+30+30sec/move"]
[WhiteTitle "-"]
[BlackTitle "-"]
[WhiteFideId "1353144"]
[BlackFideId "1304496"]
[WhiteElo "2078"]
[BlackElo "1893"]

1. e4 {[%clk 01:40:56]} {[%emt 00:00:03]} d5 {[%clk 01:40:52]} {[%emt
00:00:09]} 2. exd5 {[%clk 01:41:20]} {[%emt 00:00:07]} Nf6 {[%clk 01:41:17]}
{[%emt 00:00:06]} 3. d4 {[%clk 01:41:41]} {[%emt 00:00:08]} Qxd5 {[%clk
01:41:33]} {[%emt 00:00:14]} 4. Nc3 {[%clk 01:42:01]} {[%emt 00:00:10]} Qd6
{[%clk 01:41:25]} {[%emt 00:00:37]} 5. Nf3 {[%clk 01:41:54]} {[%emt 00:00:37]}
c6 {[%clk 01:41:10]} {[%emt 00:00:46]} 6. Be2 {[%clk 01:31:20]} {[%emt
00:11:03]} Bg4 {[%clk 01:39:21]} {[%emt 00:02:19]} 7. h3 {[%clk 01:31:21]}
{[%emt 00:00:30]} Bh5 {[%clk 01:39:19]} {[%emt 00:00:31]} 8. g4 {[%clk
01:31:12]} {[%emt 00:00:39]} Bg6 {[%clk 01:39:41]} {[%emt 00:00:09]} 9. Ne5
{[%clk 01:30:59]} {[%emt 00:00:43]} Nbd7 {[%clk 01:34:46]} {[%emt 00:05:25]} 10.
Nxg6 {[%clk 01:17:07]} {[%emt 00:14:21]} hxg6 {[%clk 01:34:51]} {[%emt
00:00:25]} 11. Qd3 {[%clk 01:16:41]} {[%emt 00:00:56]} e5 {[%clk 01:30:22]}
{[%emt 00:04:59]} 12. Be3 {[%clk 01:14:00]} {[%emt 00:03:11]} exd4 {[%clk
01:27:58]} {[%emt 00:02:54]} 13. Bxd4 {[%clk 01:12:50]} {[%emt 00:01:40]} c5
{[%clk 01:17:12]} {[%emt 00:11:16]} 14. Nb5 {[%clk 01:05:03]} {[%emt 00:08:18]}
Qb6 {[%clk 01:13:16]} {[%emt 00:04:26]} 15. Bxf6 {[%clk 01:03:00]} {[%emt
00:02:33]} gxf6 {[%clk 01:08:10]} {[%emt 00:05:35]} 16. O-O-O {[%clk 01:00:59]}
{[%emt 00:02:30]} Bh6+ {[%clk 01:03:48]} {[%emt 00:04:53]} 17. Kb1 {[%clk
01:01:10]} {[%emt 00:00:19]} O-O-O {[%clk 00:59:40]} {[%emt 00:04:38]} 18. Nd6+
{[%clk 00:58:11]} {[%emt 00:03:29]} Kb8 {[%clk 00:55:38]} {[%emt 00:04:32]} 19.
Nxf7 {[%clk 00:58:27]} {[%emt 00:00:14]} Ne5 {[%clk 00:55:25]} {[%emt
00:00:43]} 20. Qg3 {[%clk 00:58:44]} {[%emt 00:00:13]} 1-0